Cogmind - Beta 15 @@@ ROGUE MODE // 2025.08.28 @ 23:16:57 Player: naththebg Result: Escaped! Performance ------------- Evolutions (9) 4500 Regions Visited (28) 5600 Robots Destroyed (340) 1700 Value Destroyed (23303) 23303 Prototype IDs (55) 1100 Alien Tech Used (0) 0 Bonus (22946) 22946 TOTAL SCORE: 59149 Bonus ------- Triggered High Security 500 High Alert Combat Kills 4128 Follower Combat Kills 9222 Entered Garrisons 1800 Used RIF Installer 5000 Aligned with FarCom 300 Win 3000 Friendly Fire -1004 Cogmind --------- Core Integrity 470/1600 Matter 9/300 Energy 233/240 System Corruption 13% Temperature Cool (12) Movement Treading (145) Location To Epsilon Eridani Parts ------- > --- POWER (1) -------- Zero-point Reactor > --- PROPULSION (4) --- Biometal Heavy Treads > --- UTILITY (16) ----- Medium Storage Unit Relay Coupler [NC] (6) Relay Coupler [Sentry] (40) Relay Coupler [Demolisher] (27) Relay Coupler [Specialist] (32) Relay Coupler [Specialist] (32) Relay Coupler [Heavy] (23) Relay Coupler [Behemoth] (16) Relay Coupler [Proto] (15) > --- WEAPON (4) ------- Linear Accelerator Point Singularity Launcher > --- INVENTORY (10) --- (None) Peak State ------------ > --- POWER ------------ Zero-point Reactor > --- PROPULSION ------- Improved Heavy Siege Treads Advanced Heavy Siege Treads > --- UTILITY ---------- High-capacity Storage Unit Advanced Matter Compressor Heavy Armor Plating Point Defense System Relay Coupler [NC] Relay Coupler [NC] Relay Coupler [Swarmer] Relay Coupler [Sentry] Relay Coupler [Sentry] Relay Coupler [Sentry] Relay Coupler [Demolisher] Relay Coupler [Specialist] Relay Coupler [Hunter] Relay Coupler [Hunter] Relay Coupler [Behemoth] > --- WEAPON ----------- Heavy Hardcell Cannon Enhanced Hardcell Cannon Advanced Remote Datajack > --- INVENTORY -------- Quantum Reactor Quantum Reactor Zero-point Reactor Improved Heavy Treads Improved Heavy Treads Relay Coupler [Grunt] Relay Coupler [Grunt] Relay Coupler [Sentry] Relay Coupler [Demolisher] Relay Coupler [Specialist] Relay Coupler [Heavy] Relay Coupler [Heavy] Relay Coupler [Proto] Cooled Plasma Cannon YOLO Cannon Point Singularity Launcher [Rating: 156] Favorites ----------- Power Antimatter Reactor Engine Improved Deuterium Engine Power Core Enhanced Nuclear Core Reactor Antimatter Reactor Propulsion Improved Heavy Treads Treads Improved Heavy Treads Leg Centrium Leg Wheel Centrium Wheel Utility Relay Coupler [Sentry] Device Improved Kinecellerator Storage Large Storage Unit Processor Improved Salvage Targeting Computer Hackware Relay Coupler [Sentry] Protection Improved Powered Armor Weapon Magnetic Acceleration Cannon Energy Gun Particle Gun Energy Cannon Cooled Plasma Cannon Ballistic Gun Improved Assault Rifle Ballistic Cannon Magnetic Acceleration Cannon Launcher Heavy Rocket Launcher Special Weapon Advanced Remote Datajack Build | -11 -10 -10 -10 -9 -8 -8 -8 -8 -7 -7 -7 -7 -6 -6 -5 -5 -5 -5 -5 -4 -4 -4 -4 -3 -3 -2 -2 -1 ------- Run | Yrd Mat Min Exi Min Mat Gar Mat Gar Fac Gar Fac Gar Fac Gar Fac Gar Fac Upp Upp Fac Was Fac Gar Res Gar Res Gar Acc Slots Evolved 18 | . . . . . 4 . . . 2 . . . 2 . 2 . . . . 2 . . . 2 . 2 . 2 Power . | . . . . . . . . . . . . . . . . . . . . . . . . . . . . . Propulsion 2 | . . . . . 1 . . . . . . . . . 1 . . . . . . . . . . . . . Utility 14 | . . . . . 2 . . . 2 . . . 2 . 1 . . . . 2 . . . 2 . 1 . 2 Weapon 2 | . . . . . 1 . . . . . . . . . . . . . . . . . . . . 1 . . Parts Attached 269 | 5 4 1 . 4 15 11 8 16 20 9 13 24 4 6 . 15 4 . . 6 . 3 20 5 15 3 24 34 Power 21 | 1 . . . 1 1 2 1 1 1 1 3 1 1 1 . . . . . . . . 2 . . 1 . 3 Engine 11 | 1 . . . 1 1 1 . 1 1 1 3 1 . . . . . . . . . . . . . . . . Core 3 | . . . . . . 1 1 . . . . . 1 . . . . . . . . . . . . . . . Reactor 7 | . . . . . . . . . . . . . . 1 . . . . . . . . 2 . . 1 . 3 Propulsion 47 | 3 . . . 2 5 4 2 . 6 . 1 2 . . . 1 . . . . . . 4 1 5 1 2 8 Treads 23 | . . . . . . 3 2 . 6 . 1 2 . . . 1 . . . . . . . . . . 2 6 Leg 21 | 2 . . . 2 5 1 . . . . . . . . . . . . . . . . 4 1 5 1 . . Wheel 3 | 1 . . . . . . . . . . . . . . . . . . . . . . . . . . . 2 Hover . | . . . . . . . . . . . . . . . . . . . . . . . . . . . . . Flight . | . . . . . . . . . . . . . . . . . . . . . . . . . . . . . Utility 137 | 1 1 1 . . 7 3 3 9 4 6 6 16 3 5 . 8 2 . . 3 . 3 11 3 10 . 19 13 Device 23 | . . 1 . . 3 3 1 3 . . 1 3 3 1 . . . . . . . 1 1 . 1 . . 1 Storage 7 | 1 1 . . . 1 . 1 . . . . . . . . 1 . . . . . . . 1 . . . 1 Processor 2 | . . . . . 1 . . . 1 . . . . . . . . . . . . . . . . . . . Hackware 87 | . . . . . 1 . . 6 1 6 1 9 . 4 . 7 2 . . 2 . . 10 1 9 . 19 9 Protection 18 | . . . . . 1 . 1 . 2 . 4 4 . . . . . . . 1 . 2 . 1 . . . 2 Artifact . | . . . . . . . . . . . . . . . . . . . . . . . . . . . . . Weapon 64 | . 3 . . 1 2 2 2 6 9 2 3 5 . . . 6 2 . . 3 . . 3 1 . 1 3 10 Energy Gun 12 | . 2 . . 1 2 1 1 5 . . . . . . . . . . . . . . . . . . . . Energy Cannon 4 | . . . . . . . . . 1 . . . . . . . . . . . . . . . . . 2 1 Ballistic Gun 11 | . 1 . . . . . 1 . 5 . . . . . . . 1 . . . . . . . . . . 3 Ballistic Cannon 26 | . . . . . . 1 . . 2 1 2 4 . . . 5 1 . . 3 . . 2 1 . . 1 3 Launcher 4 | . . . . . . . . . . 1 . 1 . . . . . . . . . . . . . . . 2 Special Weapon 7 | . . . . . . . . 1 1 . 1 . . . . 1 . . . . . . 1 . . 1 . 1 Impact Weapon . | . . . . . . . . . . . . . . . . . . . . . . . . . . . . . Slashing Weapon . | . . . . . . . . . . . . . . . . . . . . . . . . . . . . . Piercing Weapon . | . . . . . . . . . . . . . . . . . . . . . . . . . . . . . Special Melee Weapon . | . . . . . . . . . . . . . . . . . . . . . . . . . . . . . Unidentified Prototypes 16 | . . . . . 2 . 1 . 3 . 1 1 1 1 . . 1 . . . . . . 2 . 1 . 2 Corrupted Parts 1 | . . . . . . . . . . . . . . . . . . . . . . . 1 . . . . . System Corruption 8 | . . . . . . . . . . . . . . . . . . . . . . . 8 . . . . . Parts Lost 64 | . . . . 1 . 4 . 8 . 1 . 2 . . . . 1 . . 2 . . 10 . 3 2 3 27 Power 6 | . . . . 1 . 1 . 1 . . . . . . . . . . . . . . 2 . . . . 1 Propulsion 9 | . . . . . . . . 1 . . . . . . . . . . . . . . 2 . 1 . . 5 Utility 30 | . . . . . . 1 . . . . . 2 . . . . . . . 2 . . 4 . 2 1 3 15 Weapon 19 | . . . . . . 2 . 6 . 1 . . . . . . 1 . . . . . 2 . . 1 . 6 Highest Loss Streak 10 | . . . . 1 . 1 . 3 . 1 . 1 . . . . 1 . . 2 . . 6 . 2 1 1 10 To Critical Strikes . | . . . . . . . . . . . . . . . . . . . . . . . . . . . . . Average Backups 14 | 4 7 7 8 8 10 13 14 13 13 13 13 13 13 14 12 14 17 17 17 15 16 16 18 16 16 17 16 14 Power . | . 1 1 1 . 1 1 . . . . . . . . . . . . . . . . . 1 1 1 1 2 Propulsion 1 | 2 4 4 4 4 4 3 1 2 1 1 1 1 1 1 . . . . . . . . . . . . . 1 Utility 9 | . . 1 2 2 2 7 10 9 9 8 9 8 8 9 8 10 12 13 13 10 9 9 11 10 11 12 12 8 Weapon 3 | 1 1 1 1 2 1 1 1 1 1 2 3 3 3 3 3 3 4 4 4 5 6 6 5 4 4 4 2 2 Tool/Special . | . . . . . . . . . . . . . . . . . . . . . . . . . . . . . Unused Backups 25 | . . . . . . 6 . 1 . 3 1 6 . 1 . 1 . . . . . . 1 1 . . 3 1 Power 1 | . . . . . . . . . . . . . . . . . . . . . . . . . . . . 1 Propulsion 1 | . . . . . . 1 . . . . . . . . . . . . . . . . . . . . . . Utility 22 | . . . . . . 4 . 1 . 3 1 6 . 1 . 1 . . . . . . 1 1 . . 3 . Weapon 1 | . . . . . . 1 . . . . . . . . . . . . . . . . . . . . . . Tool/Special . | . . . . . . . . . . . . . . . . . . . . . . . . . . . . . Average Slot Usage (%) 90 | . 80 98 100 100 95 96 100 95 89 92 96 93 91 92 91 87 87 88 88 83 84 85 92 91 91 80 84 77 Engine 3 | . 14 14 14 14 9 1 . 6 7 7 7 7 1 . . . . . . . . . . . . . . . Core 1 | . . . . . . 7 9 2 . . . . 4 5 . . . . . . . . . . . . . . Reactor 2 | . . . . . . . . . . . . . . . 5 5 5 5 5 5 5 5 4 4 4 4 4 3 Treads 11 | . . . . . . 7 27 26 22 23 23 17 13 13 17 11 11 11 11 10 10 10 2 . . . 5 7 Leg 5 | . 28 28 28 28 26 19 . . . . . . . . . . . . . . . . 15 19 17 17 5 . Device 7 | . . 12 14 14 15 17 16 6 1 . . 6 18 19 11 11 10 5 5 9 10 10 7 9 3 . . 2 Storage 6 | . 14 14 14 14 9 9 10 11 7 7 7 7 6 6 5 5 5 5 5 5 5 5 5 4 4 4 4 5 Hackware 23 | . . . . . 5 7 . 9 20 23 23 18 13 13 17 16 20 29 29 26 26 26 35 37 45 44 52 46 Protection 7 | . . . . . 1 1 9 8 6 7 11 11 13 13 14 16 14 11 11 9 10 11 6 4 4 1 . . Energy Gun 4 | . 23 28 28 28 26 19 14 14 3 . . . . . . . . . . . . . . . . . . . Ballistic Cannon 8 | . . . . . . 4 9 . 4 10 18 19 17 16 17 11 10 11 11 10 10 10 9 5 3 4 3 4 Special Weapon 3 | . . . . . . . . 6 4 5 2 2 2 1 . 3 5 5 5 4 5 5 4 4 4 3 4 3 Peak Build Rating 156 | 4 6 8 9 10 34 38 36 37 49 49 52 72 80 81 89 105 105 103 103 115 106 115 122 131 131 124 134 156 Average Rating 78 | 2 5 7 8 9 24 34 32 33 45 47 49 64 78 78 86 97 104 103 102 107 105 108 111 126 118 119 126 132 On Entrance 68 | . 4 6 8 9 10 34 32 35 30 49 49 52 69 78 81 89 105 103 103 103 106 106 113 122 131 122 119 131 Naked Turns . | . . . . . . . . . . . . . . . . . . . . . . . . . . . . . Heaviest Build 131 | 10 19 20 20 20 36 42 53 52 59 62 62 85 89 95 107 131 131 114 114 131 109 117 119 106 106 91 93 113 Greatest Support 155 | 20 20 20 20 20 51 60 62 62 76 68 68 103 103 103 123 150 150 150 150 150 150 150 150 113 113 116 150 155 Greatest Overweight (x) 25 | . . . . . 1 . . 1 . . . 1 . . . . . . . . . . 25 . 1 . 1 2 Average Overweight (x) . | . . . . . . . . . . . . . . . . . . . . . . . . . . . . . Largest Inventory Capacity 20 | 8 10 10 10 10 15 15 15 15 15 15 15 15 15 15 15 20 20 20 20 20 20 20 20 20 20 20 20 20 Average Capacity 16 | 7 9 10 10 10 12 15 15 15 15 15 15 15 15 15 15 16 20 20 20 20 20 20 20 20 20 20 20 18 Most Carried 20 | 8 8 10 10 10 15 15 15 15 15 15 15 15 15 15 14 20 19 18 18 17 17 20 20 20 20 20 20 20 Average Carried 15 | 5 6 9 9 9 11 14 14 14 14 14 14 14 14 14 13 15 18 18 18 16 17 17 19 18 19 20 19 17 Final Capacity 20 | 8 10 10 10 10 15 15 15 15 15 15 15 15 15 15 15 20 20 20 20 20 20 20 20 20 20 20 20 10 Final Carried 20 | 8 7 10 10 10 14 15 15 15 15 15 15 15 15 15 13 19 18 18 18 17 17 20 20 17 20 20 20 . Class Distribution -------------------- 50% | Botlord-Tank 18% | Bothacker-Skirmisher 9% | Mutant 5% | Scavenger-Skirmisher 5% | Bothacker-Tank 5% | Botlord-Skirmisher Dominant Class ---------------- Mutant | -10/Mines Mutant | -10/Exiles Mutant | -9/Mines Scavenger-Skirmisher | -8/Materials Scavenger-Skirmisher | -8/Garrison Scavenger-Skirmisher | -8/Materials Bothacker-Skirmisher | -8/Garrison Bothacker-Skirmisher | -7/Factory Bothacker-Skirmisher | -7/Garrison Bothacker-Tank | -7/Factory Botlord-Tank | -7/Garrison Botlord-Tank | -6/Factory Botlord-Tank | -6/Garrison Botlord-Tank | -5/Factory Botlord-Tank | -5/Garrison Botlord-Tank | -5/Factory Botlord-Tank | -5/Upper Caves Botlord-Tank | -5/Upper Caves Botlord-Tank | -4/Factory Botlord-Tank | -4/Waste Botlord-Tank | -4/Factory Botlord-Tank | -4/Garrison Botlord-Tank | -3/Research Botlord-Skirmisher | -3/Garrison Botlord-Skirmisher | -2/Research Botlord-Tank | -2/Garrison Botlord-Tank | -1/Access Resources | -11 -10 -10 -10 -9 -8 -8 -8 -8 -7 -7 -7 -7 -6 -6 -5 -5 -5 -5 -5 -4 -4 -4 -4 -3 -3 -2 -2 -1 ----------- Run | Yrd Mat Min Exi Min Mat Gar Mat Gar Fac Gar Fac Gar Fac Gar Fac Gar Fac Upp Upp Fac Was Fac Gar Res Gar Res Gar Acc Matter Collected 15464 | 236 . 61 . 40 175 271 62 716 294 563 223 1936 421 655 . 1135 866 218 251 481 . 775 1046 619 772 323 1169 2156 Remotely . | . . . . . . . . . . . . . . . . . . . . . . . . . . . . . Salvage Created 13613 | . . 238 . 207 766 670 196 930 309 501 190 1316 282 226 . 1020 710 137 58 271 . 755 426 309 587 138 884 2487 Parts 586 | . . 11 . 14 38 34 10 44 15 27 10 58 6 16 . 53 23 4 4 10 . 33 13 17 25 3 28 90 Haulers Intercepted 2 | . . . . . . . . . . . . . . . . . 1 . . 1 . . . . . . . . Recyclers Shooed 5 | . . . . . 1 . . . . . . . . . . . . . . . . 3 . . . . . 1 Parts Field Recycled . | . . . . . . . . . . . . . . . . . . . . . . . . . . . . . Retrieved Matter . | . . . . . . . . . . . . . . . . . . . . . . . . . . . . . Parts Self-Destructed 16 | . . . . . . . . . . . . . . . . . . 6 10 . . . . . . . . . Prevented 2 | . . . . . . . . . . . . . . . . . . 1 1 . . . . . . . . . Kills | -11 -10 -10 -10 -9 -8 -8 -8 -8 -7 -7 -7 -7 -6 -6 -5 -5 -5 -5 -5 -4 -4 -4 -4 -3 -3 -2 -2 -1 ------- Run | Yrd Mat Min Exi Min Mat Gar Mat Gar Fac Gar Fac Gar Fac Gar Fac Gar Fac Upp Upp Fac Was Fac Gar Res Gar Res Gar Acc Combat Hostiles Destroyed 277 | . . 7 . 7 12 23 3 22 12 14 2 29 3 10 . 22 5 6 1 5 . 7 11 5 13 3 8 47 Guns 67 | . . 7 . 6 9 18 3 22 2 . . . . . . . . . . . . . . . . . . . Cannons 151 | . . . . . . 3 . . 6 9 1 15 3 4 . 12 4 6 1 5 . 7 11 5 12 3 8 36 AOE 52 | . . . . 1 1 . . . 3 5 1 14 . 6 . 10 1 . . . . . . . 1 . . 9 Classes Destroyed 23 | . . 2 . 1 4 2 . 1 2 . 2 1 1 1 . . 3 . . 1 . . . . . . . 2 Worker 13 | . . . . . . . . . . . 1 . . . . . 2 . . . . 6 . . . . . 4 Builder 5 | . . . . . . . . . . . 2 . . . . . 1 . . . . . . . . . . 2 Tunneler 1 | . . . . . . . . . . . . . . . . . . . . . . . . . . . . 1 Hauler 2 | . . . . . . . . . . . . . . . . . 1 . . 1 . . . . . . . . Recycler 15 | . . . . . 2 . . . . . 2 . 2 . . . 2 . . . . 3 . . . . . 4 Operator 4 | . . . . . 3 . . . . . . . . . . . . . . . . 1 . . . . . . Watcher 10 | . . . . . 2 . . . . . 1 . . 1 . 1 1 . . 3 . 1 . . . . . . Swarmer 77 | . . 4 . 3 3 12 . 3 3 4 . 13 1 6 . 10 1 1 . . . . 5 . 3 . . 5 Cutter 4 | . . . . . . . . . . . . . . 1 . 1 . . . . . . . . 2 . . . Saboteur 2 | . . . . . . . . . . . . . . . . . 2 . . . . . . . . . . . Grunt 75 | . . 3 . 3 6 5 2 7 . 6 . 8 . 1 . 7 4 . . . . . 2 . . 2 1 18 Brawler 8 | . . . . . . . . 2 . . . . . 1 . 1 1 . . . . . . . . . 1 2 Duelist 9 | . . . . 1 1 . . . . . . 2 1 1 . 1 . . 1 . . . . . . . . 1 Protector 2 | . . . . . . . . . . . . . . . . . . . . . . . . . . . . 2 Sentry 25 | . . . . . 3 1 . 5 . 5 1 3 . . . . . 1 . . . 2 2 . 1 . 1 . Demolisher 2 | . . . . . . . . . 2 . . . . . . . . . . . . . . . . . . . Specialist 3 | . . . . . . . . . . . . 1 . . . . 1 . . . . . . 1 . . . . Hunter 22 | . . . . . . 1 1 1 3 . . . . . . 2 . 1 . 3 . . 1 2 2 . 2 3 Programmer 53 | . . . . . . 4 . 4 2 . 1 3 . . . 1 1 2 . 1 . 5 2 2 5 1 3 16 Heavy 1 | . . . . . . . . . . . . . . . . . . . . 1 . . . . . . . . Behemoth 2 | . . . . . . . . . . . . . 1 . . . . 1 . . . . . . . . . . Executioner 1 | . . . . . . . . . . . . . . . . . 1 . . . . . . . . . . . Assembled 2 | . . . . . . . . . 2 . . . . . . . . . . . . . . . . . . . Butcher 2 | . . . . . . . 1 . . . . 1 . . . . . . . . . . . . . . . . Guerrilla 1 | . . . . . . . . . . . . . . . . 1 . . . . . . . . . . . . Infiltrator 1 | . . . . . . . . . . . . . . . . . 1 . . . . . . . . . . . Best Kill Streak 9 | . . 3 . 3 5 4 3 3 4 5 4 5 1 3 . 8 3 2 1 2 . 9 3 3 5 2 3 8 Combat Bots Only 8 | . . 3 . 3 5 4 3 3 4 5 1 5 1 3 . 8 2 2 1 2 . 4 3 3 5 2 3 8 Max Kills in Single Turn 8 | . . 1 . 2 2 2 1 2 2 3 4 3 1 3 . 3 8 1 1 2 . 3 1 1 1 1 1 4 Gunslinging 1 | . . . . 1 . 1 . 1 . . . . . . . . . . . . . . . . . . . . Exploded 4 | . . . . 1 1 . . . 2 3 1 3 . 3 . 3 1 . . . . . . . 1 . . 4 Melee . | . . . . . . . . . . . . . . . . . . . . . . . . . . . . . Uniques/NPCs Destroyed . | . . . . . . . . . . . . . . . . . . . . . . . . . . . . . Combat | -11 -10 -10 -10 -9 -8 -8 -8 -8 -7 -7 -7 -7 -6 -6 -5 -5 -5 -5 -5 -4 -4 -4 -4 -3 -3 -2 -2 -1 -------- Run | Yrd Mat Min Exi Min Mat Gar Mat Gar Fac Gar Fac Gar Fac Gar Fac Gar Fac Upp Upp Fac Was Fac Gar Res Gar Res Gar Acc Hostile Shots Fired 1928 | . . 31 . 11 66 100 27 192 37 109 22 231 23 38 . 59 4 32 3 76 . 35 175 24 76 15 43 499 Missed 578 | . . 7 . 2 14 25 8 54 10 44 10 79 8 14 . 7 3 14 2 23 . 7 49 11 21 5 10 151 Hits 1350 | . . 24 . 9 52 75 19 138 27 65 12 152 15 24 . 52 1 18 1 53 . 28 126 13 55 10 33 348 Melee 34 | . . . . 2 1 . . 1 9 . . 1 . . . 2 . . 1 . . . . . 5 . . 12 Projectile 1316 | . . 24 . 7 51 75 19 137 18 65 12 151 15 24 . 50 1 18 . 53 . 28 126 13 50 10 33 336 AOE 12 | . . . . . . . . . 4 . . 1 . . . 1 1 . . . . . . . 1 . 2 2 Critical Strikes 62 | . . . . 1 . 4 4 10 . 1 . 2 . 1 . 5 . . . 2 . . 6 . 6 1 1 18 Part Disruptions 8 | . . . . . . . . 2 1 . . . . . . . . . . . . . . . . 1 . 4 Damage Taken 24019 | . . 252 . 144 608 852 286 1990 777 720 118 1867 260 473 . 830 239 422 35 1055 . 441 2372 235 1193 258 840 7752 Core 2233 | . . 57 . 19 120 140 . 215 38 67 16 88 57 13 . 79 . 40 . 59 . 44 226 63 64 74 121 633 Absorbed by Shields 3035 | . . . . . . 22 . 12 . 16 . 19 99 183 . 381 86 54 35 189 . 159 248 86 254 . 253 939 Reduced by Siege Mode 502 | . . . . . . . . . . . . . . . . 9 . . . 92 . 29 109 . . . . 263 Redirected to Shielding 110 | . . . . . . . . . . . . . . . . . . . . . . 22 88 . . . . . Ignored by Resistances 125 | . . . . . . . . 114 3 . . 8 . . . . . . . . . . . . . . . . Regen/Repaired (Parts) 3095 | . . . . . . . . 447 242 . 51 120 359 262 . 446 23 . . 464 . . . . . . . 681 Core Remaining (%) 70 | 100 . . . 69 . . . 13 . . . 70 . 91 . . . . 88 . . . 71 . 90 . 86 29 Volleys Fired 1271 | . . 20 . 13 37 66 10 127 25 53 23 116 19 43 . 126 25 15 16 37 6 31 56 23 73 18 92 201 Largest 3 | . . 2 . 2 3 3 3 3 3 3 3 3 3 3 . 3 2 2 2 3 2 2 2 1 1 1 1 2 Hottest 199 | . . 90 . 115 187 187 107 199 134 110 120 135 135 135 . 135 102 102 102 153 102 102 116 68 68 68 68 154 Shots Fired 1981 | . . 33 . 26 102 149 26 211 42 82 44 211 40 61 . 182 42 31 22 73 8 55 94 23 72 18 91 243 Gun 508 | . . 33 . 26 102 137 16 182 10 . . . . . . . . . . . . . . . . . . 2 Cannon 1192 | . . . . . . 12 10 3 29 65 34 183 33 51 . 145 31 30 12 66 4 49 84 9 60 13 74 195 Launcher 34 | . . . . . . . . . . 4 . 12 . 6 . 5 2 . . . . . . . . . . 5 Special 247 | . . . . . . . . 26 3 13 10 16 7 4 . 32 9 1 10 7 4 6 10 14 12 5 17 41 Kinetic 1090 | . . . . . . 12 20 37 17 52 34 158 33 50 . 107 31 30 12 66 4 49 84 9 60 13 48 164 Thermal 514 | . . 17 . 17 97 136 . 89 22 13 . 25 . 1 . 38 . . . . . . . . . . 26 33 Explosive 34 | . . . . . . . . . . 4 . 12 . 6 . 5 2 . . . . . . . . . . 5 Electromagnetic 96 | . . 16 . 9 5 1 6 59 . . . . . . . . . . . . . . . . . . . . Robot Hit Streak 25 | . . 6 . 4 13 19 7 12 7 13 7 14 7 7 . 22 14 16 12 24 9 8 7 9 17 5 25 23 Robot Miss Streak 8 | . . 1 . 3 4 6 8 4 5 2 5 5 3 3 . 4 1 3 1 3 1 2 4 2 3 2 4 4 Penetration Max 1 | . . . . . . . . . . . . 1 . . . . 1 1 . . . 1 . . . . . . Secondary Targets 13 | . . . . 1 2 5 . 5 . . . . . . . . . . . . . . . . . . . . Max Gunslinging Chain 2 | . . . . 1 1 1 . 2 . . . . . . . . . . . . . . . . . . . . Shots Hit Robots 1215 | . . 26 . 16 71 93 21 126 21 48 20 128 25 16 . 107 31 17 16 47 7 33 53 20 39 12 72 150 Core Hits 548 | 1 . 11 . 10 34 38 16 44 18 22 8 65 6 16 . 48 38 6 2 16 . 20 16 5 14 2 21 71 Critical Kills 5 | . . . . . . . . 1 1 . . 1 . . . . . . . . . . . . . . 1 1 Critical Parts Destroyed 1 | . . . . . . . . 1 . . . . . . . . . . . . . . . . . . . . Critical Strikes 94 | . . 1 . . 5 6 . 4 1 2 3 10 . . . 6 5 4 2 4 . 6 9 1 8 . 2 15 Burn 14 | . . 1 . . 5 6 . 2 . . . . . . . . . . . . . . . . . . . . Meltdown 4 | . . . . . . . . . 1 . . 1 . . . . . . . . . . . . . . 1 1 Destroy 2 | . . . . . . . . 2 . . . . . . . . . . . . . . . . . . . . Blast 74 | . . . . . . . . . . 2 3 9 . . . 6 5 4 2 4 . 6 9 1 8 . 1 14 Melee Attacks . | . . . . . . . . . . . . . . . . . . . . . . . . . . . . . Impact . | . . . . . . . . . . . . . . . . . . . . . . . . . . . . . Slashing . | . . . . . . . . . . . . . . . . . . . . . . . . . . . . . Piercing . | . . . . . . . . . . . . . . . . . . . . . . . . . . . . . Sneak Attacks . | . . . . . . . . . . . . . . . . . . . . . . . . . . . . . Combat Hostiles . | . . . . . . . . . . . . . . . . . . . . . . . . . . . . . Follow-up Attacks . | . . . . . . . . . . . . . . . . . . . . . . . . . . . . . Damage Inflicted 50579 | 4 . 358 . 241 1453 1768 433 1937 1212 1379 1217 5831 872 1387 . 3887 3332 797 213 1784 140 1744 1934 753 2773 964 3718 10448 Guns 5674 | . . 342 . 208 1266 1611 250 1879 118 . . . . . . . . . . . . . . . . . . . Cannons 34257 | . . . . . . 151 183 58 543 1050 442 4202 872 483 . 3000 988 797 213 1784 128 1429 1898 729 2643 964 3704 7996 Explosions 10332 | . . . . 33 173 . . . 529 324 746 1629 . 886 . 887 2344 . . . . 248 . . 130 . . 2403 Melee . | . . . . . . . . . . . . . . . . . . . . . . . . . . . . . Ramming 316 | 4 . 16 . . 14 6 . . 22 5 29 . . 18 . . . . . . 12 67 36 24 . . 14 49 Kinetic 30987 | . . . . . . 151 314 630 173 839 442 3574 872 483 . 2112 988 797 213 1784 128 1429 1898 729 2643 964 3027 6797 Thermal 11369 | . . 189 . 170 1372 1611 . 765 945 211 543 628 . . . 888 1299 . . . . . . . . . 677 2071 Explosive 6740 | . . . . . . . . . . 324 203 1629 . 886 . 887 1045 . . . . 248 . . 130 . . 1388 Electromagnetic 1167 | . . 153 . 71 67 . 119 542 72 . . . . . . . . . . . . . . . . . . 143 Impact . | . . . . . . . . . . . . . . . . . . . . . . . . . . . . . Slashing . | . . . . . . . . . . . . . . . . . . . . . . . . . . . . . Piercing . | . . . . . . . . . . . . . . . . . . . . . . . . . . . . . Highest Corruption 33 | . . . . . . 2 2 11 . . 1 3 1 2 . 5 5 5 5 1 16 21 33 . 1 1 4 13 Average Corruption 6 | . . . . . . 1 2 8 . . 1 1 1 1 . 4 5 5 5 1 11 16 30 . 1 1 3 7 Corruption Purged . | . . . . . . . . . . . . . . . . . . . . . . . . . . . . . Corruption Blocked . | . . . . . . . . . . . . . . . . . . . . . . . . . . . . . Effects 386 | . . . . . . 20 5 52 . . 3 22 . 17 . 19 19 17 14 . 8 35 69 . 6 1 34 45 Message Errors 92 | . . . . . . 4 2 13 . . . 2 . 3 . 1 6 2 6 . 1 11 13 . 2 1 14 11 Matter Fused 90 | . . . . . . 5 1 13 . . 1 4 . 5 . 5 4 5 4 . 5 4 17 . 1 . 9 7 Heat Flow Errors 51 | . . . . . . 3 . 6 . . . 4 . 3 . 6 1 2 . . . 3 14 . . . 3 6 Energy Discharges 43 | . . . . . . 1 1 5 . . 1 4 . 2 . 3 3 1 2 . 1 4 9 . . . . 6 Parts Rejected 7 | . . . . . . 1 . 1 . . . . . . . . 1 . 1 . . . 1 . . . . 2 Parts Fused 2 | . . . . . . 1 . . . . . . . 1 . . . . . . . . . . . . . . Data Loss (minor) 44 | . . . . . . 2 . 7 . . . 5 . . . 2 . 4 . . 1 4 6 . 2 . 5 6 Data Loss (major) 16 | . . . . . . 1 . 2 . . 1 . . 2 . 1 2 . 1 . . 1 1 . . . 2 2 Misfires 14 | . . . . . . 1 . 3 . . . . . . . . 2 2 . . . 4 2 . . . . . Alerts 9 | . . . . . . 1 . 1 . . . 2 . 1 . 1 . 1 . . . 1 . . . . . 1 Misdirections 5 | . . . . . . . . . . . . . . . . . . . . . . 1 2 . . . . 2 Weapon Failures 13 | . . . . . . . 1 1 . . . 1 . . . . . . . . . 2 4 . 1 . 1 2 Overload Shots 8 | . . . . . . . . . 7 . . . . 1 . . . . . . . . . . . . . . Overflow Damage 2709 | . . . . . . . . . 13 . 137 232 31 68 . 118 346 20 8 44 . 93 20 90 96 187 226 980 Projectiles 2002 | . . . . . . . . . 12 . 15 169 31 50 . 85 78 20 8 44 . 92 20 90 96 187 226 779 Explosions 693 | . . . . . . . . . . . 122 63 . 18 . 33 268 . . . . . . . . . . 189 Melee 14 | . . . . . . . . . 1 . . . . . . . . . . . . 1 . . . . . 12 Knockbacks 173 | . . . . . . 3 8 2 1 3 2 19 5 4 . 16 3 3 2 8 . 10 12 4 14 5 3 46 Impact 3 | . . . . . . . . . 1 . . . . . . . . . . . . 1 . . . . . 1 Kinetic 161 | . . . . . . 3 8 2 . 3 2 16 5 4 . 13 3 3 2 8 . 9 11 4 14 5 3 43 Secondary 9 | . . . . . . . . . . . . 3 . . . 3 . . . . . . 1 . . . . 2 Self-Inflicted Damage 619 | . . . . . . . . . . . . . . . . 8 248 . . . . . . . 41 . . 322 Shots 9 | . . . . . . . . . . . . . . . . 1 3 . . . . . . . 1 . . 4 Rammed 18 | . . . . . . . . 1 3 1 2 . . 3 . . . . . . 1 3 2 . . . . 2 Targets Rammed 33 | 1 . 5 . . 2 1 . 1 3 1 2 . . 3 . . . . . . 1 4 2 2 . . 2 3 Kicked 13 | 1 . 5 . . 2 1 . . . . . . . . . . . . . . . . . 2 . . 2 . Crushed 2 | . . . . . . . . . . . . . . . . . . . . . . 1 . . . . . 1 Highest Temperature 497 | . . 276 . 68 335 219 . 353 204 210 132 497 124 253 . 339 138 218 81 252 24 221 369 28 20 7 135 233 Average Temperature 82 | . . 148 . 35 111 30 . 108 47 53 45 104 44 66 . 87 39 45 29 62 14 83 118 9 8 4 38 63 Received Heat Transfer 3494 | . . 81 . 15 189 130 162 409 178 242 24 572 52 64 . 180 6 33 . 79 . 36 84 39 21 21 105 772 Effects 22 | . . . . . 1 . . 9 . . . 6 . 1 . 2 . 1 . . . 1 1 . . . . . Shutdowns 1 | . . . . . . . . . . . . 1 . . . . . . . . . . . . . . . . Energy Bleed 7 | . . . . . . . . 3 . . . 1 . . . . . 1 . . . 1 1 . . . . . Interference 12 | . . . . . 1 . . 5 . . . 4 . 1 . 1 . . . . . . . . . . . . Matter Decay 1 | . . . . . . . . . . . . . . . . 1 . . . . . . . . . . . . Damage (minor) 1 | . . . . . . . . 1 . . . . . . . . . . . . . . . . . . . . Siege Activations 10 | . . . . . . . . . . . . . 1 . . 4 . . . 2 . 1 1 . . . . 1 Total Turns 158 | . . . . . . . . . . . . . 4 . . 47 . . . 30 . 28 14 . . . . 35 Longest Duration 35 | . . . . . . . . . . . . . 4 . . 21 . . . 22 . 28 14 . . . . 35 Martial Activations . | . . . . . . . . . . . . . . . . . . . . . . . . . . . . . Shielding Activations . | . . . . . . . . . . . . . . . . . . . . . . . . . . . . . Robots Disrupted . | . . . . . . . . . . . . . . . . . . . . . . . . . . . . . Combat Hostiles . | . . . . . . . . . . . . . . . . . . . . . . . . . . . . . Robots Corrupted 1 | . . . . . . . . . . . . . . . . . . . . . . 1 . . . . . . Combat Hostiles . | . . . . . . . . . . . . . . . . . . . . . . . . . . . . . Parts Fried 5 | . . . . . . . . 3 . . . . . . . . . . . . . 1 . . . . . 1 Impact Corruptions 3 | . . . . . . . . . 1 . . . . . . . . . . . . 1 . . . . . 1 Robots Melted 9 | . . . . . 2 2 . . 1 . . 1 . . . . . . . . . . . . . . 1 2 Combat Hostiles 7 | . . . . . 2 2 . . 1 . . . . . . . . . . . . . . . . . . 2 Parts Melted 34 | . . 1 . 1 4 13 1 3 1 . . 2 . . . . . . . . . . . 1 . . 5 2 Heat Transferred 17238 | . . 629 . 420 3147 3552 . 1776 796 296 350 851 . . . 1221 850 . . . . . . . . . 1050 2300 Parts Sabotaged . | . . . . . . . . . . . . . . . . . . . . . . . . . . . . . Parts Stolen . | . . . . . . . . . . . . . . . . . . . . . . . . . . . . . Parts Stripped . | . . . . . . . . . . . . . . . . . . . . . . . . . . . . . Power Chain Reactions 3 | . . . . 1 1 . . . . . . . . . . . . . . . . . . . . . . 1 Alert | -11 -10 -10 -10 -9 -8 -8 -8 -8 -7 -7 -7 -7 -6 -6 -5 -5 -5 -5 -5 -4 -4 -4 -4 -3 -3 -2 -2 -1 ------- Run | Yrd Mat Min Exi Min Mat Gar Mat Gar Fac Gar Fac Gar Fac Gar Fac Gar Fac Upp Upp Fac Was Fac Gar Res Gar Res Gar Acc Maximum Alert Level 5 | . . . . . 2 3 2 3 2 3 1 5 3 5 3 5 5 . . 2 . 1 3 2 4 3 3 4 Low Security (%) 15 | 100 100 100 . 100 81 15 . . 34 9 19 8 . . . . . . . . 100 89 . . . . . . Level 1 19 | . . . . . 7 28 18 21 51 32 80 15 . . . . . . . 54 . 10 40 26 13 . 4 5 Level 2 26 | . . . . . 10 18 81 55 14 49 . 8 . . . 4 . . . 45 . . 51 73 30 90 85 38 Level 3 19 | . . . . . . 36 . 22 . 9 . 29 100 25 100 11 . . . . . . 8 . 35 9 9 54 Level 4 11 | . . . . . . . . . . . . 30 . 66 . 16 68 . . . . . . . 21 . . 1 Level 5 6 | . . . . . . . . . . . . 6 . 8 . 67 9 . . . . . . . . . . . High Security . | . . . . . . . . . . . . . . . . . 21 . . . . . . . . . . . Max Security . | . . . . . . . . . . . . . . . . . . . . . . . . . . . . . Peak Influence 2546 | . . 115 . 117 455 1086 529 926 484 718 378 1747 1067 1702 907 2546 2118 . . 631 90 387 828 524 1278 718 793 1128 Initial 1336 | . . . . . 38 95 529 226 484 177 376 47 917 735 893 620 1336 . . 564 90 1 257 465 364 718 414 475 Average 681 | . . 30 . 63 173 559 469 516 258 433 254 881 935 1256 891 1743 1491 . . 426 41 145 490 425 821 641 521 688 Influence Increases 17944 | . . 270 . 291 695 1051 120 917 437 631 376 1870 436 1027 24 2086 1242 300 35 425 8 662 731 271 1064 100 729 2146 Destroy 0b10 Robot/C 6840 | . . 200 . 180 440 500 80 560 200 300 40 620 220 360 . 760 240 120 20 100 . 140 220 120 300 60 160 900 Destroy 0b10 Robot/NC 355 | . . . . . 35 . . . 5 . 30 30 15 5 . 20 35 . . 20 . 55 5 . 10 . 25 65 Destroy Leader 892 | . . 40 . 30 104 50 30 10 40 . 22 50 42 20 . 60 34 30 . 38 . 52 20 30 40 . 20 130 Allied During Kill 2528 | . . 30 . 46 55 16 5 32 4 78 43 156 129 153 . 551 296 150 15 59 . . 37 78 129 34 122 310 Successful Hack 150 | . . . . . 6 . 5 14 10 7 5 14 . 14 24 . 14 . . 14 . . 16 . 7 . . . Disable Machine 1035 | . . . . 15 45 . . . 120 15 150 45 15 30 . 30 120 . . 30 . 225 30 . 15 . 30 120 Anti-Garrison Action 3400 | . . . . . . 400 . 250 . 200 . 750 . 300 . 450 150 . . . . . 300 . 300 . 300 . Destroy Structure 2324 | . . . . 5 10 55 . 21 43 31 71 145 15 145 . 200 338 . . 164 8 190 103 28 143 6 72 531 Lose Combat Pursuer 420 | . . . . 15 . 30 . 30 15 . 15 60 . . . 15 15 . . . . . . 15 120 . . 90 Influence Decreases 16863 | . . 203 67 192 647 112 857 343 1107 166 1026 191 1132 376 839 427 1700 1028 499 1063 264 296 271 613 272 826 488 1858 Entered New Map 8316 | . . . 67 . 61 52 557 123 439 76 342 21 830 316 809 267 1210 774 259 332 168 1 111 363 122 560 138 318 Time Decay 4556 | . . 203 . 182 246 . 130 . 518 . 534 . 262 . 30 . 310 254 180 326 70 295 . 130 . 206 . 680 Lost Part 640 | . . . . 10 . 40 . 80 . 10 . 20 . . . . 10 . . 20 . . 100 . 30 20 30 270 Lost Ally 2176 | . . . . . 40 20 20 140 . 80 . 150 40 60 . 160 170 . 60 110 26 . 60 120 120 40 320 440 Purge Threat 1175 | . . . . . 300 . 150 . 150 . 150 . . . . . . . . 275 . . . . . . . 150 Squads Dispatched 66 | . . . . . 3 . 1 . 4 . 4 . 5 . . . 11 . . 3 . 1 . 7 . 1 . 26 Investigation 2 | . . . . . 1 . . . . . 1 . . . . . . . . . . . . . . . . . Extermination 16 | . . . . . . . . . 2 . 3 . . . . . 1 . . 1 . 1 . . . 1 . 7 Reinforcement 12 | . . . . . 1 . . . . . . . . . . . 1 . . 2 . . . 3 . . . 5 Assault 20 | . . . . . . . . . 2 . . . 1 . . . 9 . . . . . . 1 . . . 7 Garrison 16 | . . . . . 1 . 1 . . . . . 4 . . . . . . . . . . 3 . . . 7 Intercept . | . . . . . . . . . . . . . . . . . . . . . . . . . . . . . Searches Triggered . | . . . . . . . . . . . . . . . . . . . . . . . . . . . . . Construction Impeded 3 | . . . . . . . . . . . . . . . . . 1 . . . . . . . . . . 2 Haulers Reinforced 2 | . . . . . . . . . . . . . . . . . . . . . . . . 1 . . . 1 Active Scanning Responses . | . . . . . . . . . . . . . . . . . . . . . . . . . . . . . Cargo Convoy Interrupts 1 | . . . . . . . . . 1 . . . . . . . . . . . . . . . . . . . Alert ID Control Effect 182 | . . . . . . . . . . 5 8 13 1 11 . 6 27 6 5 15 . . 10 4 13 3 15 40 Stealth | -11 -10 -10 -10 -9 -8 -8 -8 -8 -7 -7 -7 -7 -6 -6 -5 -5 -5 -5 -5 -4 -4 -4 -4 -3 -3 -2 -2 -1 --------- Run | Yrd Mat Min Exi Min Mat Gar Mat Gar Fac Gar Fac Gar Fac Gar Fac Gar Fac Upp Upp Fac Was Fac Gar Res Gar Res Gar Acc Distress Signals 12 | . . . . . 4 . 3 . . . . . . . . . . . . . . 1 . . . . . 4 Communications Jammed 387 | . . . . . . . . . . . . . . 20 . 9 31 . . 16 . 22 . . . 1 11 277 Distress Signals 383 | . . . . . . . . . . . . . . 20 . 9 31 . . 16 . 22 . . . 1 11 273 Times Spotted 629 | . . 10 . 8 27 30 6 41 20 27 9 43 14 23 . 40 40 12 7 21 5 10 31 20 36 11 36 102 Peak Tracking Total 10 | . . 3 . 4 10 4 6 5 6 5 2 5 5 5 . 7 7 6 5 6 2 5 10 8 6 5 6 8 Tactical Retreats 20 | . . . . 1 . 2 . 2 1 . 1 3 . . . 1 1 . . . . . . 1 4 . . 3 Traps | -11 -10 -10 -10 -9 -8 -8 -8 -8 -7 -7 -7 -7 -6 -6 -5 -5 -5 -5 -5 -4 -4 -4 -4 -3 -3 -2 -2 -1 ------- Run | Yrd Mat Min Exi Min Mat Gar Mat Gar Fac Gar Fac Gar Fac Gar Fac Gar Fac Upp Upp Fac Was Fac Gar Res Gar Res Gar Acc Traps Triggered 29 | . . . . . . 3 . 2 2 4 . 3 1 1 . 2 . . . 1 . . 5 1 1 1 1 1 Indirectly . | . . . . . . . . . . . . . . . . . . . . . . . . . . . . . Trap Hack Attempts . | . . . . . . . . . . . . . . . . . . . . . . . . . . . . . Triggered . | . . . . . . . . . . . . . . . . . . . . . . . . . . . . . Disarmed . | . . . . . . . . . . . . . . . . . . . . . . . . . . . . . Reprogrammed . | . . . . . . . . . . . . . . . . . . . . . . . . . . . . . Reused . | . . . . . . . . . . . . . . . . . . . . . . . . . . . . . Traps Extracted . | . . . . . . . . . . . . . . . . . . . . . . . . . . . . . Installed . | . . . . . . . . . . . . . . . . . . . . . . . . . . . . . Triggered . | . . . . . . . . . . . . . . . . . . . . . . . . . . . . . Most Traps Carried 2 | . . 2 2 . . . . . . . . . . . . . . . . . . . . . . . . . Machines | -11 -10 -10 -10 -9 -8 -8 -8 -8 -7 -7 -7 -7 -6 -6 -5 -5 -5 -5 -5 -4 -4 -4 -4 -3 -3 -2 -2 -1 ---------- Run | Yrd Mat Min Exi Min Mat Gar Mat Gar Fac Gar Fac Gar Fac Gar Fac Gar Fac Upp Upp Fac Was Fac Gar Res Gar Res Gar Acc Machines Disabled 119 | . . . . 1 3 5 . 4 8 5 10 9 1 6 . 8 9 . 2 2 . 15 7 . 10 . 6 8 Max in Single Turn 6 | . . . . 1 1 2 . 1 5 1 6 2 . 1 . 1 3 . 1 1 . 5 1 . 2 . 1 1 Garrison Access 2 | . . . . . . . . . 1 . . . . . . . 1 . . . . . . . . . . . Garrison Relay 45 | . . . . . . 6 . 4 . 4 . 4 . 4 . 5 . . . . . . 4 . 6 . 8 . Phase Generator 2 | . . . . . . . . . . . . 1 . . . . . . . . . . . . 1 . . . Energy Cycler 1 | . . . . . . . . . . . . . . . . . . . . . . . . . . . . 1 Machines Repaired . | . . . . . . . . . . . . . . . . . . . . . . . . . . . . . Machines Dismantled . | . . . . . . . . . . . . . . . . . . . . . . . . . . . . . Machines Sabotaged . | . . . . . . . . . . . . . . . . . . . . . . . . . . . . . Overloaded Fab Kills . | . . . . . . . . . . . . . . . . . . . . . . . . . . . . . Hacking | -11 -10 -10 -10 -9 -8 -8 -8 -8 -7 -7 -7 -7 -6 -6 -5 -5 -5 -5 -5 -4 -4 -4 -4 -3 -3 -2 -2 -1 --------- Run | Yrd Mat Min Exi Min Mat Gar Mat Gar Fac Gar Fac Gar Fac Gar Fac Gar Fac Upp Upp Fac Was Fac Gar Res Gar Res Gar Acc Machines Accessed 58 | . . 1 2 . 5 3 4 3 4 2 7 1 1 2 2 2 4 . . 3 . 1 1 1 1 4 . 4 Terminals 36 | . . 1 . . 3 3 2 3 3 2 4 1 . 2 1 2 3 . . 2 . . 1 . 1 . . 2 Fabricators . | . . . . . . . . . . . . . . . . . . . . . . . . . . . . . Repair Stations 4 | . . . . . . . . . . . 1 . . . . . . . . 1 . . . . . 2 . . Recycling Units 6 | . . . . . 1 . 1 . . . 1 . . . . . . . . . . . . . . 1 . 2 Scanalyzers . | . . . . . . . . . . . . . . . . . . . . . . . . . . . . . Garrison Access 10 | . . . . . 1 . 1 . 1 . 1 . 1 . 1 . 1 . . . . 1 . 1 . 1 . . Total Hacks 111 | . . 5 5 . 11 7 7 4 11 4 12 1 1 2 3 2 5 . . 8 . 1 2 1 1 14 . 4 Successful 54 | . . 1 5 . 6 2 4 2 7 1 4 1 1 1 2 1 3 . . 4 . 1 1 1 1 5 . . Failed 56 | . . 4 . . 5 5 3 2 3 3 8 . . 1 1 1 2 . . 4 . . 1 . . 9 . 4 Catastrophic 5 | . . . . . 1 1 . . . . 2 . . . . . . . . . . . . . . . . 1 Database Lockouts 1 | . . . . . . . . . 1 . . . . . . . . . . . . . . . . . . . Manual 36 | . . 5 1 . 5 2 4 . 2 . 4 . . . . . 2 . . 5 . . . . . 6 . . Terminals 72 | . . 5 . . 8 7 4 4 10 4 8 1 . 2 2 2 4 . . 6 . . 2 . 1 . . 2 Fabricators . | . . . . . . . . . . . . . . . . . . . . . . . . . . . . . Repair Stations 12 | . . . . . . . . . . . 1 . . . . . . . . 2 . . . . . 9 . . Recycling Units 12 | . . . . . 2 . 2 . . . 2 . . . . . . . . . . . . . . 4 . 2 Scanalyzers . | . . . . . . . . . . . . . . . . . . . . . . . . . . . . . Garrison Access 10 | . . . . . 1 . 1 . 1 . 1 . 1 . 1 . 1 . . . . 1 . 1 . 1 . . Terminal Hacks 29 | . . 1 5 . 3 2 1 2 5 1 2 1 . 1 1 1 . . . 1 . . 1 . 1 . . . Record 8 | . . . 4 . . . . . 3 . . . . . . . . . . 1 . . . . . . . . Prototype ID Bank 3 | . . 1 . . 1 . . . . . 1 . . . . . . . . . . . . . . . . . Open Door 3 | . . . . . . 1 . . . 1 . . . . . . . . . . . . . . 1 . . . Emergency Access Points 4 | . . . . . . 1 . . . . . 1 . 1 . 1 . . . . . . . . . . . . Unreport Threat 4 | . . . . . 2 . 1 . . . 1 . . . . . . . . . . . . . . . . . Locate Traps 2 | . . . . . . . . . 1 . . . . . 1 . . . . . . . . . . . . . Zone Layout 1 | . . . . . . . . . 1 . . . . . . . . . . . . . . . . . . . Garrison Registry 2 | . . . . . . . . 1 . . . . . . . . . . . . . . 1 . . . . . Patrol Navigation 1 | . . . . . . . . 1 . . . . . . . . . . . . . . . . . . . . Proto ID Catalog 1 | . . . 1 . . . . . . . . . . . . . . . . . . . . . . . . . Fabricator Hacks . | . . . . . . . . . . . . . . . . . . . . . . . . . . . . . Repair Station Hacks . | . . . . . . . . . . . . . . . . . . . . . . . . . . . . . Recycling Unit Hacks 4 | . . . . . . . 1 . . . . . . . . . . . . . . . . . . 3 . . Process 1 | . . . . . . . . . . . . . . . . . . . . . . . . . . 1 . . Report Inventory 1 | . . . . . . . . . . . . . . . . . . . . . . . . . . 1 . . Retrieve Matter 1 | . . . . . . . . . . . . . . . . . . . . . . . . . . 1 . . Retrieve Components 1 | . . . . . . . 1 . . . . . . . . . . . . . . . . . . . . . Scanalyzer . | . . . . . . . . . . . . . . . . . . . . . . . . . . . . . Garrison Access Hacks 10 | . . . . . 1 . 1 . 1 . 1 . 1 . 1 . 1 . . . . 1 . 1 . 1 . . Unlock Access 10 | . . . . . 1 . 1 . 1 . 1 . 1 . 1 . 1 . . . . 1 . 1 . 1 . . Unauthorized Hacks 11 | . . . . . 2 . 1 . 1 . 1 . . . . . 2 . . 3 . . . . . 1 . . Terminals 8 | . . . . . 2 . 1 . 1 . . . . . . . 2 . . 2 . . . . . . . . Botnet 8 | . . . . . 2 . 1 . 1 . . . . . . . 2 . . 2 . . . . . . . . Fabricators . | . . . . . . . . . . . . . . . . . . . . . . . . . . . . . Repair Stations 3 | . . . . . . . . . . . 1 . . . . . . . . 1 . . . . . 1 . . Mechanics 3 | . . . . . . . . . . . 1 . . . . . . . . 1 . . . . . 1 . . Recycling Units . | . . . . . . . . . . . . . . . . . . . . . . . . . . . . . Scanalyzers . | . . . . . . . . . . . . . . . . . . . . . . . . . . . . . Garrison Access . | . . . . . . . . . . . . . . . . . . . . . . . . . . . . . Data Cores Recovered 3 | . . . . . 2 . . . 1 . . . . . . . . . . . . . . . . . . . Used 1 | . . . . . 1 . . . . . . . . . . . . . . . . . . . . . . . Hacking Detections 44 | . . 1 . . 4 2 4 2 3 1 7 1 . 2 1 1 3 . . 3 . . 1 . . 4 . 4 Full Trace Events 3 | . . . . . 1 1 . . . . 1 . . . . . . . . . . . . . . . . . Feedback Events . | . . . . . . . . . . . . . . . . . . . . . . . . . . . . . Feedback Blocked . | . . . . . . . . . . . . . . . . . . . . . . . . . . . . . Robot Schematics Acquired . | . . . . . . . . . . . . . . . . . . . . . . . . . . . . . Robots Built . | . . . . . . . . . . . . . . . . . . . . . . . . . . . . . Authchips . | . . . . . . . . . . . . . . . . . . . . . . . . . . . . . Time . | . . . . . . . . . . . . . . . . . . . . . . . . . . . . . Total Robot Build Rating . | . . . . . . . . . . . . . . . . . . . . . . . . . . . . . Part Schematics Acquired . | . . . . . . . . . . . . . . . . . . . . . . . . . . . . . Parts Built . | . . . . . . . . . . . . . . . . . . . . . . . . . . . . . Authchips . | . . . . . . . . . . . . . . . . . . . . . . . . . . . . . Time . | . . . . . . . . . . . . . . . . . . . . . . . . . . . . . Total Part Build Rating . | . . . . . . . . . . . . . . . . . . . . . . . . . . . . . Parts Repaired . | . . . . . . . . . . . . . . . . . . . . . . . . . . . . . Time . | . . . . . . . . . . . . . . . . . . . . . . . . . . . . . Parts Recycled . | . . . . . . . . . . . . . . . . . . . . . . . . . . . . . Recycled Matter 30 | . . . . . . . . . . . . . . . . . . . . . . . . . . 30 . . Retrieved Matter 30 | . . . . . . . . . . . . . . . . . . . . . . . . . . 30 . . Retrieved Components 1 | . . . . . . . 1 . . . . . . . . . . . . . . . . . . . . . Parts Scanalyzed . | . . . . . . . . . . . . . . . . . . . . . . . . . . . . . Part Schematics Acquired . | . . . . . . . . . . . . . . . . . . . . . . . . . . . . . Parts Damaged . | . . . . . . . . . . . . . . . . . . . . . . . . . . . . . Bothacking | -11 -10 -10 -10 -9 -8 -8 -8 -8 -7 -7 -7 -7 -6 -6 -5 -5 -5 -5 -5 -4 -4 -4 -4 -3 -3 -2 -2 -1 ------------ Run | Yrd Mat Min Exi Min Mat Gar Mat Gar Fac Gar Fac Gar Fac Gar Fac Gar Fac Upp Upp Fac Was Fac Gar Res Gar Res Gar Acc Used RIF Installer 10 | . . . . . . 1 . 1 . 1 . 1 . 1 . 1 . . . . . . 1 . 2 . 1 . Coupler Efficiency 1 | . . . . . . . . . . . . . . . . . . . . . . . 1 . . . . . Command Fork 1 | . . . . . . . . 1 . . . . . . . . . . . . . . . . . . . . Signal Jammer 1 | . . . . . . . . . . . . 1 . . . . . . . . . . . . . . . . Watcher Feeds 1 | . . . . . . . . . . . . . . . . . . . . . . . . . 1 . . . Patrol Navigation 1 | . . . . . . . . . . . . . . . . . . . . . . . . . 1 . . . Alert ID Control 1 | . . . . . . . . . . 1 . . . . . . . . . . . . . . . . . . Structural Interface 1 | . . . . . . . . . . . . . . . . 1 . . . . . . . . . . . . Autoassimilate 2 | . . . . . . . . . . . . . . 1 . . . . . . . . . . . . 1 . Robots Hacked 152 | . . . . . . . . 9 2 10 4 7 3 1 . 9 12 1 1 4 4 3 11 9 9 2 20 31 Non-combat 27 | . . . . . . . . 1 1 . 4 . 2 . . . 1 1 . 2 . 2 . 1 . . 1 11 Combat 125 | . . . . . . . . 8 1 10 . 7 1 1 . 9 11 . 1 2 4 1 11 8 9 2 19 20 Autoassimilated 29 | . . . . . . . . . . . . . . . . 1 6 . . . . . 4 . 2 . 7 9 Robot Hacks Applied 131 | . . . . . . . . 10 2 10 4 7 3 1 . 9 6 1 1 6 4 3 7 10 7 3 13 24 parse_system 7 | . . . . . . . . . . . . . . . . 1 . 1 . 1 . . . 2 . . . 2 drop_inventory 11 | . . . . . . . . . . . 2 . 1 . . . . . . . . 2 . 1 . . . 5 purge_threat 4 | . . . . . . . . . 1 . . . . . . . . . . 2 . . . . . . . 1 map_route 4 | . . . . . . . . . . . 1 . . . . . . . . . . . . . . . . 3 ignore_targets 4 | . . . . . . . . . . . . . . . . . . . . . 4 . . . . . . . emergency_deploy 1 | . . . . . . . . . . . . . . . . . . . . . . . . . . . . 1 find_garrison 2 | . . . . . . . . . . . . . . . . . . . . . . 1 . . . 1 . . amplify_resonance 7 | . . . . . . . . 2 . . . . . . . . . . . 1 . . 2 . . . . 2 reboot_system 2 | . . . . . . . . 1 . . . 1 . . . . . . . . . . . . . . . . overwrite_iff 19 | . . . . . . . . 2 . 3 . 1 . . . . 2 . . . . . . 2 2 1 4 2 formatsys_low 6 | . . . . . . . . 1 . . 1 . 1 . . 1 . . . 1 . . . . . . . 1 formatsys_high 64 | . . . . . . . . 4 1 7 . 5 1 1 . 7 4 . 1 1 . . 5 5 5 1 9 7 Relay Couplers Released 193 | . . . . . . 25 . 18 1 16 . 17 . 17 . 23 2 . . . . . 15 . 25 . 34 . Machine Destruction 189 | . . . . . . 25 . 18 1 16 . 17 . 17 . 19 2 . . . . . 15 . 25 . 34 . Programmers 4 | . . . . . . . . . . . . . . . . 4 . . . . . . . . . . . . Attached 86 | . . . . . . . . 6 1 6 1 9 . 4 . 7 2 . . 2 . . 10 1 9 . 19 9 Fabnet Peak Effective % . | . . . . . . . . . . . . . . . . . . . . . . . . . . . . . Robots Rewired 19 | . . . . . . . . 5 . . . . . 2 . 9 . . 2 . . . 1 . . . . . Allies Hacked 18 | . . . . . . . . 2 . . . 1 . . . 1 1 2 . . . . 3 . 2 1 1 4 Hacks Repelled . | . . . . . . . . . . . . . . . . . . . . . . . . . . . . . Allies | -11 -10 -10 -10 -9 -8 -8 -8 -8 -7 -7 -7 -7 -6 -6 -5 -5 -5 -5 -5 -4 -4 -4 -4 -3 -3 -2 -2 -1 -------- Run | Yrd Mat Min Exi Min Mat Gar Mat Gar Fac Gar Fac Gar Fac Gar Fac Gar Fac Upp Upp Fac Was Fac Gar Res Gar Res Gar Acc Total Allies 166 | . . 3 . 2 . 2 . 11 1 13 1 10 2 5 . 20 13 . 3 2 . . 10 8 13 3 22 22 Largest Group 19 | . . 3 3 5 5 2 2 6 2 6 7 8 6 7 7 17 19 11 12 10 3 . 4 7 7 7 11 12 Highest-Rated Group 860 | . . 40 40 86 86 45 45 158 41 157 177 254 261 394 394 742 860 466 530 442 145 . 336 473 380 346 663 733 Highest-Rated Ally 148 | . . 16 16 31 31 26 25 39 32 32 32 80 80 119 119 119 119 64 64 64 64 . 148 148 116 64 69 69 Total Orders 15 | . . . . . . . . 3 1 . 1 3 1 1 . 2 1 . . 1 . . . . . . . 1 STAY 1 | . . . . . . . . 1 . . . . . . . . . . . . . . . . . . . . FOLLOW 1 | . . . . . . . . 1 . . . . . . . . . . . . . . . . . . . . AID 13 | . . . . . . . . 1 1 . 1 3 1 1 . 2 1 . . 1 . . . . . . . 1 Ally Attacks 1315 | . . 7 . 17 56 11 2 59 10 42 29 62 46 50 . 117 132 33 35 45 60 . 48 53 80 18 104 199 Total Damage 44498 | . . 73 . 167 684 174 79 953 371 1127 560 1792 1897 1730 . 3124 5708 1353 694 2203 1870 . 1674 2126 2399 640 3964 9136 Kills 271 | . . 3 . 2 11 2 1 6 3 6 8 15 10 20 . 23 35 6 6 18 2 . 10 7 16 3 15 43 Allies Corrupted 15 | . . . . . . . . . 1 . . . . . . 2 3 . 2 . 1 . 1 1 . 1 . 3 Allies Melted . | . . . . . . . . . . . . . . . . . . . . . . . . . . . . . Intel | -11 -10 -10 -10 -9 -8 -8 -8 -8 -7 -7 -7 -7 -6 -6 -5 -5 -5 -5 -5 -4 -4 -4 -4 -3 -3 -2 -2 -1 ------- Run | Yrd Mat Min Exi Min Mat Gar Mat Gar Fac Gar Fac Gar Fac Gar Fac Gar Fac Upp Upp Fac Was Fac Gar Res Gar Res Gar Acc Active Infowar (turns) 3 | . . . . . . . 1 . . . . . . 2 . . . . . . . . . . . . . . Traps 1 | . . . . . . . 1 . . . . . . . . . . . . . . . . . . . . . Spoofing 2 | . . . . . . . . . . . . . . 2 . . . . . . . . . . . . . . Robot Analysis Total . | . . . . . . . . . . . . . . . . . . . . . . . . . . . . . Derelict Logs Recovered 5 | . . 2 . . . . . . . . . . . . . . . 2 1 . . . . . . . . . Drone Launches . | . . . . . . . . . . . . . . . . . . . . . . . . . . . . . Drone Recoveries . | . . . . . . . . . . . . . . . . . . . . . . . . . . . . . Exploration | -11 -10 -10 -10 -9 -8 -8 -8 -8 -7 -7 -7 -7 -6 -6 -5 -5 -5 -5 -5 -4 -4 -4 -4 -3 -3 -2 -2 -1 ------------- Run | Yrd Mat Min Exi Min Mat Gar Mat Gar Fac Gar Fac Gar Fac Gar Fac Gar Fac Upp Upp Fac Was Fac Gar Res Gar Res Gar Acc Turns Passed 26301 | 50 26 796 260 418 536 1600 271 1546 1432 1147 1509 2413 560 1387 74 1952 879 555 378 738 209 666 1309 270 890 420 1327 2683 Spaces Moved 13770 | 39 16 593 209 272 245 888 134 645 752 566 795 1139 263 721 44 855 477 319 185 351 104 309 753 177 499 309 715 1396 Core 44 | 14 . . . . . . . . . . . . . . . . . . . . . . 1 . . . . 29 Treads 9574 | . . . . . . 251 134 645 752 566 795 1139 263 721 44 855 477 319 185 351 104 309 129 . . . 505 1030 Legs 3804 | 14 16 593 209 272 245 637 . . . . . . . . . . . . . . . . 623 177 499 309 210 . Wheels 348 | 11 . . . . . . . . . . . . . . . . . . . . . . . . . . . 337 Hover . | . . . . . . . . . . . . . . . . . . . . . . . . . . . . . Flight . | . . . . . . . . . . . . . . . . . . . . . . . . . . . . . Fastest Speed 50 | 50 120 120 120 120 120 123 161 161 163 166 166 160 160 160 163 160 160 160 160 160 160 160 120 120 117 112 112 50 Average Speed 149 | 83 120 120 120 120 124 136 163 162 166 166 166 163 160 160 163 160 160 160 160 160 160 160 133 120 132 113 146 141 Slowest Speed 1300 | 120 120 120 120 120 190 163 166 237 170 166 166 246 160 160 163 163 160 160 160 160 160 160 1300 120 183 117 240 250 Overloaded Moves . | . . . . . . . . . . . . . . . . . . . . . . . . . . . . . Propulsion Burnouts . | . . . . . . . . . . . . . . . . . . . . . . . . . . . . . Robots Hopped . | . . . . . . . . . . . . . . . . . . . . . . . . . . . . . Potential Cave-ins . | . . . . . . . . . . . . . . . . . . . . . . . . . . . . . Cave-ins Triggered . | . . . . . . . . . . . . . . . . . . . . . . . . . . . . . Exploration Rate (%) 43 | 4 5 90 59 43 33 76 16 68 12 66 20 95 7 90 2 92 14 53 20 13 70 13 86 7 57 13 95 55 Regions Visited 28 Branch Regions 5 Pre-discovered Areas 2 | . . 1 1 . . . . . . . . . . . . . . . . . . . . . . . . . Known Exits Taken 9 | . . . . . 1 . 1 . 1 . 1 . 1 . 1 . . . . . . 1 . 1 . 1 . . Unknown Exits Taken 8 | 1 1 1 1 1 . . . . . . . . . . . . 1 1 1 . . . . . . . . . Scrap Searched 4 | . . . . 1 . . . . . . . . . . . . . 2 1 . . . . . . . . . Spaces Dug 110 | . . . . . . . . . . 2 . 49 . 18 . 15 . 1 2 2 . 4 . . 5 . . 12 Terrain Destroyed 1030 | . . . . 7 9 . . . 65 7 94 189 8 49 . 53 74 17 3 47 1 130 27 . 87 2 10 151 Melee . | . . . . . . . . . . . . . . . . . . . . . . . . . . . . . Projectile 261 | . . . . . . . . . 2 1 4 47 8 12 . 23 6 17 3 24 1 15 27 . 14 2 10 45 AOE 769 | . . . . 7 9 . . . 63 6 90 142 . 37 . 30 68 . . 23 . 115 . . 73 . . 106 Terrain Rammed . | . . . . . . . . . . . . . . . . . . . . . . . . . . . . . Walls Destroyed . | . . . . . . . . . . . . . . . . . . . . . . . . . . . . . Machines Disabled . | . . . . . . . . . . . . . . . . . . . . . . . . . . . . . Actions | -11 -10 -10 -10 -9 -8 -8 -8 -8 -7 -7 -7 -7 -6 -6 -5 -5 -5 -5 -5 -4 -4 -4 -4 -3 -3 -2 -2 -1 --------- Run | Yrd Mat Min Exi Min Mat Gar Mat Gar Fac Gar Fac Gar Fac Gar Fac Gar Fac Upp Upp Fac Was Fac Gar Res Gar Res Gar Acc Total 17767 | 55 22 643 219 338 393 1163 164 960 888 701 950 1524 370 891 46 1284 560 336 255 466 141 431 962 224 647 360 908 1866 Wait 1961 | . . 20 8 47 76 151 2 149 62 57 100 187 82 92 . 249 49 3 54 66 29 79 91 5 47 27 41 188 Move 13748 | 39 15 592 208 271 245 887 133 644 751 565 795 1138 263 720 44 854 476 318 184 351 103 308 751 177 498 309 714 1395 Hop . | . . . . . . . . . . . . . . . . . . . . . . . . . . . . . Pick Up 137 | 11 2 4 1 1 5 14 3 4 6 6 4 14 1 2 . 11 1 . . 2 . 4 14 3 4 . 10 10 Fast Attach 109 | 1 . 1 . . 4 5 4 8 8 . 4 10 1 5 . 4 2 . 1 1 . 1 8 2 9 2 14 14 Attach 81 | 3 2 . . 1 2 7 1 3 2 1 . 3 1 1 2 2 1 . . 5 . . 8 3 2 . 4 27 Detach 12 | . . . . . 1 . . 1 . . . . . . . 1 . . . . . . . . 1 . 1 7 Swap 192 | 1 2 . . 3 12 5 4 13 15 10 12 28 3 17 . 21 4 . . 4 2 2 12 1 7 2 9 3 Drop 180 | . 1 1 2 2 9 18 7 6 15 4 10 26 . 7 . 12 2 . . . . 2 7 9 5 2 16 17 Fire 1271 | . . 20 . 13 37 66 10 127 25 53 23 116 19 43 . 126 25 15 16 37 6 31 56 23 73 18 92 201 Melee . | . . . . . . . . . . . . . . . . . . . . . . . . . . . . . Ram . | . . . . . . . . . . . . . . . . . . . . . . . . . . . . . Kick 11 | . . 5 . . 2 1 . . . . . . . . . . . . . . . . . 1 . . 2 . Crush 20 | . . . . . . . . 1 3 1 2 . . 3 . . . . . . 1 4 2 . . . . 3 Escape Stasis 23 | . . . . . . 9 . 1 . . . . . . . 1 . . . . . . 12 . . . . . Rewire 22 | . . . . . . . . 3 1 4 . 2 . 1 . 3 . . . . . . 1 . 1 . 5 1 Trap . | . . . . . . . . . . . . . . . . . . . . . . . . . . . . . Miscellaneous . | . . . . . . . . . . . . . . . . . . . . . . . . . . . . . Route ------- -11/Scrapyard -10/Materials -10/Mines (discovered 2 exits: [*Mat] / *Exi) -10/Exiles -9/Mines -8/Materials -8/Garrison (discovered 2 exits: *Mat x2) -8/Materials -8/Garrison (discovered 4 exits: *Fac x3 / [*Mat]) -7/Factory -7/Garrison (discovered 3 exits: *Fac x3) -7/Factory (discovered 3 exits: *Fac / [*Low] / Gar) -7/Garrison (discovered 3 exits: *Fac x3) -6/Factory -6/Garrison (discovered 3 exits: *Fac x3) -5/Factory -5/Garrison (discovered 3 exits: *Fac x3) -5/Factory (discovered 2 exits: *Fac / [*Upp]) -5/Upper Caves -5/Upper Caves -4/Factory (discovered 2 exits: *Res x2) -4/Waste -4/Factory (discovered 2 exits: [*Upp] / Gar) -4/Garrison (discovered 3 exits: *Res x3) -3/Research -3/Garrison -2/Research -2/Garrison (discovered 3 exits: *Acc x3) -1/Access To Epsilon Eridani History --------- Turn | Location | Event 6 | -11/Scrapyard | Discovered new exit (range 14) 51 | -11/Scrapyard | Entered Materials 73 | -10/Materials | Discovered new exit (range 4) 77 | -10/Materials | Entered Mines 169 | -10/Mines | Assisted by bots powering up and referring to "LRC-V3" 289 | -10/Mines | Learned 2 Materials zone layouts 292 | -10/Mines | Learned location of Zion (-6) 301 | -10/Mines | Build established: Mutant 344 | -10/Mines | Found a hidden stash of uninstalled traps 720 | -10/Mines | Discovered new exit (range 4) 862 | -10/Mines | Deemed a non-threat by the Exiles lab entrance 862 | -10/Mines | Discovered new exit (range 5) 873 | -10/Mines | Entered Exiles 873 | -10/Exiles | Accompanied by 3 allies 906 | -10/Exiles | Met 8R-AWN 920 | -10/Exiles | Met EX-HEX 957 | -10/Exiles | Met EX-BIN 972 | -10/Exiles | Aligned with FarCom system 973 | -10/Exiles | Given EX-Vault access code 1002 | -10/Exiles | Opened EX-Vault 1013 | -10/Exiles | Found YOLO Cannon 1040 | -10/Exiles | Warned to stay clear of 0b10 Research branches 1071 | -10/Exiles | Met EX-DEC 1112 | -10/Exiles | Discovered new exit (range 14) 1133 | -10/Exiles | Left Exiles lab with YOLO Cannon 1133 | -10/Exiles | Entered Mines 1133 | -9/Mines | Accompanied by 3 allies 1510 | -9/Mines | Discovered new exit (range 14) 1551 | -9/Mines | Entered Materials 1551 | -8/Materials | Accompanied by 5 allies 1551 | -8/Materials | Evolved 4 slots: Propulsion x1, Utility x2, Weapon x1 1556 | -8/Materials | Led the pair of lost Derelicts to an unsafe place 1674 | -8/Materials | Lost 4 allies 1909 | -8/Materials | Build established: Scavenger-Skirmisher 2015 | -8/Materials | Garrison activated, responded to threat 2084 | -8/Materials | Identified exit to Garrison 2087 | -8/Materials | Entered Garrison 2087 | -8/Garrison | Accompanied by 1 ally 2207 | -8/Garrison | Triggered checkpoint 2344 | -8/Garrison | Garrison Relay disabled 2370 | -8/Garrison | Garrison Relay disabled 2512 | -8/Garrison | Triggered checkpoint 2603 | -8/Garrison | Installed Relay Interface Framework 2703 | -8/Garrison | Triggered checkpoint 2797 | -8/Garrison | Garrison Relay disabled 2834 | -8/Garrison | Build established: Mutant 2937 | -8/Garrison | Discovered new exit (range 12) 3211 | -8/Garrison | Rescued a captive Derelict 3212 | -8/Garrison | Rescued a captive Derelict 3216 | -8/Garrison | Discovered new exit (range 12) 3219 | -8/Garrison | Triggered checkpoint 3227 | -8/Garrison | Garrison Relay disabled 3353 | -8/Garrison | Triggered checkpoint 3512 | -8/Garrison | Garrison Relay disabled 3512 | -8/Garrison | Garrison Relay disabled 3687 | -8/Garrison | Entered Materials 3687 | -8/Materials | Accompanied by 2 allies 3759 | -8/Materials | Build established: Scavenger-Skirmisher 3852 | -8/Materials | Garrison activated, responded to threat 3953 | -8/Materials | Identified exit to Garrison 3958 | -8/Materials | Entered Garrison 4009 | -8/Garrison | Core integrity fell below 50% 4115 | -8/Garrison | Triggered checkpoint 4164 | -8/Garrison | Discovered new exit (range 6) 4288 | -8/Garrison | Triggered checkpoint 4322 | -8/Garrison | Build established: Bothacker-Skirmisher 4362 | -8/Garrison | Lost 3 parts (1p2w) 4576 | -8/Garrison | Triggered checkpoint 4754 | -8/Garrison | Triggered checkpoint 4855 | -8/Garrison | Discovered new exit (range 8) 4904 | -8/Garrison | Triggered checkpoint 5027 | -8/Garrison | Garrison Relay disabled 5153 | -8/Garrison | Discovered new exit (range 34) 5153 | -8/Garrison | Discovered new exit (range 62) 5153 | -8/Garrison | Discovered new exit (range 32) 5153 | -8/Garrison | Discovered new exit (range 71) 5258 | -8/Garrison | Triggered checkpoint 5326 | -8/Garrison | Expanded RIF knowledge: Command Fork 5346 | -8/Garrison | Garrison Relay disabled 5446 | -8/Garrison | Garrison Relay disabled 5447 | -8/Garrison | System corruption reached 10% 5454 | -8/Garrison | Core integrity fell below 20% 5455 | -8/Garrison | P-60 Hacker assimilated allied Trooper 3d 5459 | -8/Garrison | P-60 Hacker assimilated allied NB-E8P(g) 5462 | -8/Garrison | Garrison Relay disabled 5504 | -8/Garrison | Entered Factory 5504 | -7/Factory | Accompanied by 2 allies 5504 | -7/Factory | Evolved 2 slots: Utility x2 6327 | -7/Factory | Central database locked down 6400 | -7/Factory | Assembled infested ambush trap array 6649 | -7/Factory | Identified exit to Garrison 6796 | -7/Factory | Cargo convoy interrupted 6936 | -7/Factory | Entered Garrison 6986 | -7/Garrison | Triggered checkpoint 7061 | -7/Garrison | Expanded RIF knowledge: Alert ID Control 7092 | -7/Garrison | Garrison Relay disabled 7177 | -7/Garrison | Triggered checkpoint 7182 | -7/Garrison | Triggered checkpoint 7212 | -7/Garrison | Triggered checkpoint 7285 | -7/Garrison | Discovered new exit (range 15) 7390 | -7/Garrison | Triggered checkpoint 7410 | -7/Garrison | Garrison Relay disabled 7553 | -7/Garrison | Discovered new exit (range 8) 7604 | -7/Garrison | Triggered checkpoint 7640 | -7/Garrison | Garrison Relay disabled 7753 | -7/Garrison | Spotted B-75 Beast 7778 | -7/Garrison | Allies destroyed B-75 Beast 7780 | -7/Garrison | Discovered new exit (range 12) 7814 | -7/Garrison | Triggered checkpoint 7869 | -7/Garrison | Rescued a captive Derelict 7869 | -7/Garrison | Rescued a captive Derelict 7975 | -7/Garrison | Garrison Relay disabled 8083 | -7/Garrison | Entered Factory 8083 | -7/Factory | Accompanied by 6 allies 8399 | -7/Factory | Discovered new exit (range 10) 8685 | -7/Factory | Discovered new exit (range 16) 8988 | -7/Factory | Build established: Bothacker-Tank 9580 | -7/Factory | Identified exit to Garrison 9592 | -7/Factory | Entered Garrison 9592 | -7/Garrison | Accompanied by 7 allies 9712 | -7/Garrison | Triggered checkpoint 9757 | -7/Garrison | Found Hvy. Reflective Plating 9804 | -7/Garrison | Spotted B-75 Beast 9908 | -7/Garrison | Found Unknown Protection 9908 | -7/Garrison | Identified Imp. Powered Armor 9911 | -7/Garrison | Found Imp. Powered Armor 9919 | -7/Garrison | Found Imp. Powered Armor 9957 | -7/Garrison | Phase Generator disabled 10069 | -7/Garrison | Build established: Bothacker-Skirmisher 10187 | -7/Garrison | Triggered checkpoint 10228 | -7/Garrison | Triggered checkpoint 10258 | -7/Garrison | Triggered checkpoint 10619 | -7/Garrison | Discovered new exit (range 13) 10645 | -7/Garrison | Expanded RIF knowledge: Signal Jamming 10710 | -7/Garrison | Lost 3 allies 10748 | -7/Garrison | Triggered checkpoint 10768 | -7/Garrison | Garrison Relay disabled 10874 | -7/Garrison | Triggered checkpoint 10957 | -7/Garrison | Discovered new exit (range 12) 11087 | -7/Garrison | Build established: Botlord-Tank 11100 | -7/Garrison | Garrison Relay disabled 11124 | -7/Garrison | Triggered checkpoint 11354 | -7/Garrison | Triggered checkpoint 11418 | -7/Garrison | Garrison Relay disabled 11441 | -7/Garrison | Garrison Relay disabled 11506 | -7/Garrison | Discovered new exit (range 7) 11991 | -7/Garrison | Found embedded Infiltrators 12005 | -7/Garrison | Entered Factory 12005 | -6/Factory | Accompanied by 6 allies 12005 | -6/Factory | Evolved 2 slots: Utility x2 12165 | -6/Factory | Garrison activated, responded to threat 12274 | -6/Factory | Spotted B-75 Beast 12290 | -6/Factory | Destroyed B-75 Beast 12355 | -6/Factory | First assault squad dispatched 12485 | -6/Factory | Garrison activated, responded to threat 12565 | -6/Factory | Identified exit to Garrison 12565 | -6/Factory | Entered Garrison 12565 | -6/Garrison | Accompanied by 6 allies 12735 | -6/Garrison | Triggered checkpoint 12768 | -6/Garrison | Garrison Relay disabled 12803 | -6/Garrison | Triggered checkpoint 12887 | -6/Garrison | Triggered checkpoint 12889 | -6/Garrison | Triggered checkpoint 12915 | -6/Garrison | Triggered checkpoint 12949 | -6/Garrison | Triggered checkpoint 13078 | -6/Garrison | Expanded RIF knowledge: Autoassimilate 13151 | -6/Garrison | Triggered checkpoint 13171 | -6/Garrison | Garrison Relay disabled 13230 | -6/Garrison | Rescued a captive Derelict 13230 | -6/Garrison | Rescued a captive Derelict 13298 | -6/Garrison | Discovered new exit (range 12) 13529 | -6/Garrison | Garrison Relay disabled 13547 | -6/Garrison | Triggered checkpoint 13586 | -6/Garrison | Discovered new exit (range 3) 13608 | -6/Garrison | Rewired Executioner 13617 | -6/Garrison | Rewired Striker 13785 | -6/Garrison | Garrison Relay disabled 13803 | -6/Garrison | Triggered checkpoint 13924 | -6/Garrison | Discovered new exit (range 15) 13952 | -6/Garrison | Entered Factory 13952 | -5/Factory | Accompanied by 7 allies 13952 | -5/Factory | Evolved 2 slots: Propulsion x1, Utility x1 14026 | -5/Factory | Identified exit to Garrison 14026 | -5/Factory | Entered Garrison 14026 | -5/Garrison | Accompanied by 7 allies 14064 | -5/Garrison | Triggered checkpoint 14176 | -5/Garrison | Garrison Relay disabled 14345 | -5/Garrison | Spotted B-75 Beast 14363 | -5/Garrison | Allies destroyed B-75 Beast 14370 | -5/Garrison | Destroyed 8 combat bots 14372 | -5/Garrison | Triggered checkpoint 14462 | -5/Garrison | Discovered new exit (range 10) 14488 | -5/Garrison | Triggered checkpoint 14522 | -5/Garrison | Garrison Relay disabled 14668 | -5/Garrison | Triggered checkpoint 14718 | -5/Garrison | Triggered checkpoint 14883 | -5/Garrison | Discovered new exit (range 10) 15021 | -5/Garrison | Garrison Relay disabled 15058 | -5/Garrison | Triggered checkpoint 15082 | -5/Garrison | Triggered checkpoint 15096 | -5/Garrison | Triggered checkpoint 15117 | -5/Garrison | Lost 4 allies 15256 | -5/Garrison | Garrison Relay disabled 15396 | -5/Garrison | Triggered checkpoint 15550 | -5/Garrison | Triggered checkpoint 15610 | -5/Garrison | Found embedded Infiltrators 15622 | -5/Garrison | Expanded RIF knowledge: Structural Interface 15653 | -5/Garrison | Garrison Relay disabled 15728 | -5/Garrison | Discovered new exit (range 14) 15803 | -5/Garrison | Spotted B-75 Beast 15811 | -5/Garrison | Allies destroyed B-75 Beast 15815 | -5/Garrison | P-70 Sage assimilated allied Smith 5a 15902 | -5/Garrison | Found Relay Coupler [Proto] 15978 | -5/Garrison | Entered Factory 15978 | -5/Factory | Accompanied by 16 allies 16175 | -5/Factory | Identified exit to Garrison 16251 | -5/Factory | Discovered new exit (range 16) 16278 | -5/Factory | First assault squad dispatched 16556 | -5/Factory | Destroyed Executioner 16582 | -5/Factory | Murdered 7 allies 16666 | -5/Factory | High security lockdown imminent 16746 | -5/Factory | High security lockdown engaged 16802 | -5/Factory | Discovered new exit (range 13) 16854 | -5/Factory | Lost 4 allies 16857 | -5/Factory | Entered Upper Caves 16857 | -5/Upper Caves | Accompanied by 11 allies 17013 | -5/Upper Caves | Found DCF Scrap (11 items) 17152 | -5/Upper Caves | Attracted the attention of an 0b10 checkpoint 17187 | -5/Upper Caves | Learned Factory terminal intel 17328 | -5/Upper Caves | Discovered new exit (range 11) 17332 | -5/Upper Caves | Spotted B-75 Beast 17357 | -5/Upper Caves | Destroyed B-75 Beast 17399 | -5/Upper Caves | Learned Factory emergency access door positions 17412 | -5/Upper Caves | Entered another Upper Caves area 17412 | -5/Upper Caves | Accompanied by 11 allies 17417 | -5/Upper Caves | Learned 4 Factory zone layouts 17428 | -5/Upper Caves | Attracted the attention of an 0b10 outpost 17540 | -5/Upper Caves | Lost 4 allies 17720 | -5/Upper Caves | Discovered new exit (range 8) 17790 | -5/Upper Caves | Entered Factory 17790 | -4/Factory | Accompanied by 10 allies 17790 | -4/Factory | Evolved 2 slots: Utility x2 17791 | -4/Factory | Identified exit to Research 17793 | -4/Factory | Loaded intel: 26 terminal locations 18069 | -4/Factory | Lost 6 allies 18104 | -4/Factory | Discovered exit to Research (range 14) 18528 | -4/Factory | Sucked down chute 18528 | -4/Factory | Entered Waste 18543 | -4/Waste | EMP discharged 18548 | -4/Waste | 3 allies followed down the chute 18559 | -4/Waste | Spotted C-40 Crusher 18573 | -4/Waste | Spotted C-40 Crusher 18578 | -4/Waste | Spotted C-40 Crusher 18578 | -4/Waste | Allies destroyed C-40 Crusher 18591 | -4/Waste | Spotted C-40 Crusher 18592 | -4/Waste | Spotted C-40 Crusher 18612 | -4/Waste | Allies destroyed C-40 Crusher 18643 | -4/Waste | EMP discharged 18643 | -4/Waste | System corruption reached 10% 18666 | -4/Waste | Discovered new exit (range 10) 18728 | -4/Waste | Spotted C-40 Crusher 18737 | -4/Waste | Entered Factory 19218 | -4/Factory | Discovered new exit (range 12) 19293 | -4/Factory | Identified exit to Garrison 19403 | -4/Factory | Entered Garrison 19501 | -4/Garrison | Triggered checkpoint 19559 | -4/Garrison | Spotted B-86 Titan 19580 | -4/Garrison | Garrison Relay disabled 19655 | -4/Garrison | Triggered checkpoint 19657 | -4/Garrison | Triggered checkpoint 19661 | -4/Garrison | P-70 Sage assimilated allied Assassin 7a 19670 | -4/Garrison | Triggered checkpoint 19681 | -4/Garrison | Triggered checkpoint 19724 | -4/Garrison | Lost 6 parts (1p2n2u1w) 19726 | -4/Garrison | System corruption reached 30% 19808 | -4/Garrison | Spotted B-86 Titan 19820 | -4/Garrison | Allies destroyed B-86 Titan 19882 | -4/Garrison | Discovered exit to Research (range 7) 19909 | -4/Garrison | Triggered checkpoint 19918 | -4/Garrison | P-70 Sage assimilated allied Assassin 7c 19971 | -4/Garrison | Lost 3 parts (1p1u1w) 20020 | -4/Garrison | Discovered exit to Research (range 20) 20020 | -4/Garrison | Discovered exit to Research (range 88) 20020 | -4/Garrison | Discovered exit to Research (range 61) 20023 | -4/Garrison | Garrison Relay disabled 20171 | -4/Garrison | Triggered checkpoint 20218 | -4/Garrison | Garrison Relay disabled 20235 | -4/Garrison | Triggered checkpoint 20379 | -4/Garrison | Expanded RIF knowledge: Coupler Efficiency 20427 | -4/Garrison | Spotted B-90 Cyclops 20443 | -4/Garrison | Assimilated Cyclops 7a with formatsys_high 20453 | -4/Garrison | Rewired B-75 Beast 20538 | -4/Garrison | Garrison Relay disabled 20712 | -4/Garrison | Entered Research 20712 | -3/Research | Accompanied by 4 allies 20712 | -3/Research | Evolved 2 slots: Utility x2 20960 | -3/Research | Identified exit to Garrison 20962 | -3/Research | First assault squad dispatched 20982 | -3/Research | Entered Garrison 20982 | -3/Garrison | Accompanied by 1 ally 21009 | -3/Garrison | Lost 7 allies 21019 | -3/Garrison | Expanded RIF knowledge: Patrol Navigation 21110 | -3/Garrison | Garrison Relay disabled 21150 | -3/Garrison | Garrison Relay disabled 21173 | -3/Garrison | Garrison Relay disabled 21176 | -3/Garrison | Garrison Relay disabled 21312 | -3/Garrison | Triggered checkpoint 21401 | -3/Garrison | Garrison Relay disabled 21425 | -3/Garrison | Rescued a captive Derelict 21427 | -3/Garrison | Rescued a captive Derelict 21485 | -3/Garrison | Spotted B-86 Titan 21494 | -3/Garrison | Assimilated Titan 8a with formatsys_high 21501 | -3/Garrison | Triggered checkpoint 21516 | -3/Garrison | Triggered checkpoint 21583 | -3/Garrison | Expanded RIF knowledge: Watcher Feeds 21619 | -3/Garrison | Garrison Relay disabled 21636 | -3/Garrison | Triggered checkpoint 21681 | -3/Garrison | Phase Generator disabled 21775 | -3/Garrison | Discovered new exit (range 3) 21777 | -3/Garrison | Build established: Botlord-Skirmisher 21872 | -3/Garrison | Entered Research 21872 | -2/Research | Accompanied by 4 allies 21872 | -2/Research | Evolved 2 slots: Utility x1, Weapon x1 22292 | -2/Research | Identified exit to Garrison 22292 | -2/Research | Entered Garrison 22292 | -2/Garrison | Accompanied by 4 allies 22428 | -2/Garrison | Triggered checkpoint 22474 | -2/Garrison | Garrison Relay disabled 22524 | -2/Garrison | Spotted B-90 Cyclops 22551 | -2/Garrison | Allies destroyed B-90 Cyclops 22556 | -2/Garrison | Triggered checkpoint 22556 | -2/Garrison | Triggered checkpoint 22560 | -2/Garrison | Triggered checkpoint 22570 | -2/Garrison | Triggered checkpoint 22615 | -2/Garrison | Lost 14 allies 22789 | -2/Garrison | Discovered new exit (range 8) 22796 | -2/Garrison | Triggered checkpoint 22837 | -2/Garrison | Expanded RIF knowledge: Autoassimilate 22882 | -2/Garrison | Garrison Relay disabled 22961 | -2/Garrison | Garrison Relay disabled 22961 | -2/Garrison | Garrison Relay disabled 22967 | -2/Garrison | Garrison Relay disabled 23149 | -2/Garrison | Build established: Botlord-Tank 23156 | -2/Garrison | Triggered checkpoint 23215 | -2/Garrison | Garrison Relay disabled 23362 | -2/Garrison | Triggered checkpoint 23400 | -2/Garrison | Garrison Relay disabled 23454 | -2/Garrison | Discovered new exit (range 10) 23590 | -2/Garrison | Discovered new exit (range 7) 23619 | -2/Garrison | Entered Access 23619 | -1/Access | Accompanied by 10 allies 23619 | -1/Access | Evolved 2 slots: Utility x2 23763 | -1/Access | Found Point Singularity Launcher 23774 | -1/Access | Energy Cycler disabled 23850 | -1/Access | Garrison activated, responded to threat 23869 | -1/Access | First assault squad dispatched 23881 | -1/Access | Lost 4 allies 24255 | -1/Access | Lost 6 allies 24316 | -1/Access | Found Zero-point Reactor 24319 | -1/Access | Found Zero-point Reactor 24556 | -1/Access | Garrison activated, responded to threat 24626 | -1/Access | Lost 9 allies 25017 | -1/Access | P-80 Master assimilated allied Terminator 10e 25056 | -1/Access | Destroyed 8 combat bots 25209 | -1/Access | Garrison activated, responded to threat 25450 | -1/Access | Lost 3 parts (2u1w) 25548 | -1/Access | Found Prototype Launcher 25548 | -1/Access | Identified Gui. Micro-nuke Launcher 25784 | -1/Access | System corruption reached 10% 25840 | -1/Access | Lost 10 parts (1p3n3u3w) 26065 | -1/Access | Build established: Mutant 26122 | -1/Access | Spotted B-99 Colossus 26123 | -1/Access | Spotted B-99 Colossus 26182 | -1/Access | Lost 3 parts (3u) 26233 | -1/Access | Discovered new exit (range 6) 26248 | -1/Access | Lost 3 allies 26272 | -1/Access | Lost 3 parts (2n1u) 26294 | -1/Access | YOLO Cannon suddenly exploded 26295 | -1/Access | Core integrity fell below 50% 26302 | *** | Escaped! Last Messages --------------- 26269_ U-05 Engineer lays Concrete. 26271_ U-05 Engineer builds a Wall. 26277_ R-10 Processor collects Lgt. Quantum Reactor. 26290_ U-05 Engineer lays Concrete. 26292_ U-05 Engineer builds a Wall. 26294_ YOLO Cannon suddenly explodes. 26294_ Relay Coupler [Grunt] destroyed. 26294_ Relay Coupler [Sentry] destroyed. 26294_ Relay Coupler [NC] destroyed. 26294_ Lyr. Heavy Armor Plating destroyed. 26294_ Core damaged (-496). 26294_ Sealed Heavy Doors breached. 26296_ System corrupted: Centrium Wheel rejected. 26296_ I-47 Archangel distress signal jammed. 26301_ >> Watcher Feeds: Established visual feed link with W-44 Eye. 26301_ I-47 Archangel distress signal jammed. Map ----- +----------------------------------------------------+ | ###### ###### """ # # #??? | | / " # # #??? | | # ##### # ###"#############+####? | | # #???# = # #? | | # ##############" #? | | # #??????## +? | | # #???????# #? | | # #???????# "####### #? | | # %k !! #???????# "???### #? | | # ! !! #???????# #???#" #? | | # ! #?????? ???#"" #? | | # #????? ???#"" "# | | #????# ??#"" | | ####+#???????# ??#"" ## | | R#????????????# BB BB??#"T #####? | | #????????????# BB BB??#"" #?????? | | ### #????????????? ???#"" /// #?????? | | ??# #????????????????"""""????"" /// #?????? | | ??# #?????????????????????????"" // #?????? | | ??# #?????????????????""""""#?" #?????? | | ??# #????????????#""""" " " #?## #?????? | | ??# #????????????# #??# #?????? | | ??# #????????????# #??# #?????? | | ??# #????????????# = #??#] #?????? | | ??# #????????????# "" #????########??????? | | ??# #????????????# "@ #??????????????????? | | ??# w#????????????# #?????##??#?####???? | | ??# ???????????# #?????# ? ? #???? | | ??# ?????????# #??????= #???? | | ??# ??????## ##????? #???? | | ??# """ #????# ;?????? " ????? | | ??# "R #????##"" ;; ????? """ ????? | | ??# """ #?????#"" R #?????""" ?????? | | ??# "" #?????#"" ; #????? " ?????? | | ??# R #?????#T b ; ##?????? ??????? | | ??# #?????#"" gg ??????? ??????? | | ??# ?? #?????#"" R ????###+##?????? | | ??# ??? #?????#"" i ## ####* ####### | | ?? ?? % T | | ?? ????? "" | | ??##### ?????################ "###[%! ###+#+# | | ???????????????????????????# ???#*####? | | ???????????????????????????? = ???# #???? | | ???????????????????????????? ?????# #??? """ | | ????????????????????????????? ???????# #???[ ""T" | | ??????????????????????????????????????# #??# "" " | | ??????????????????????????????????????# #??# | | ??????????????????????????????????????# ???# | | ??????????????????????????????????????? ???# | | ??????????????????????????????????????? ???####### | +----------------------------------------------------+ Best States ------------- Heat Dissipation 65 Energy Generation 33 Energy Capacity 350 Matter Stores 700 Matter Capacity 700 Sight Range 16 Terrain Scan Density 10 Armor Coverage 2400 Resistance: KI 20 Resistance: TH 25 Core Shielding 20 Utility Shielding 66 Point Defense Rating 80 Evasion (%) 82 Targeting Accuracy 5 Recoil Reduction 4 Matter Filtering 50 Kinecelleration 40 Salvage Targeting 2 Offensive Hacking 10 Relay Coupler Types 8 Relay Coupler Value 438 Item Schematics ----------------- None Robot Schematics ------------------ None Fabricated ------------ Nothing Repaired ---------- Nothing Alien Tech Used ----------------- None Achievements -------------- None Challenges ------------ None Game ------ Seed PlasmaZhirovPenetrator Manual? 0 Play Time 04:20:18 Cumulative 364.0 hours Start 2025.08.28 @ 18:54:32 End 2025.08.28 @ 23:16:57 Sessions 1 Manual Loads 0 Difficulty Rogue Special Mode None Game No. 177 Rogue 177 Adventurer 0 Explorer 0 Win Type 0 Total 10 Types 7/0/2/0/0/0/0/0/0/1 Lore% 82 Gallery% 82 Achievement% 70 Wizard Run 0 Options --------- Layout 1 ASCII 0 Keyboard 0 Movement Mouse Keybinds 0 Fullscreen 1 Font 24/Smallcaps Map View 50x35 Zoom Use 0% Tactical HUD 1 Map Filters NONE Filters NONE Steam 1 RUN: 2fd0f6bf-b353-457c-8d2c-51fa22c8d088